Cogmind - Beta 16 @@@ ROGUE MODE // 2025.10.26 @ 12:30:56 Player: Mxykikker Result: Self-destructed Performance ------------- Evolutions (2) 1000 Regions Visited (6) 1200 Robots Destroyed (13) 65 Value Destroyed (183) 183 Prototype IDs (23) 460 Alien Tech Used (0) 0 Bonus (300) 300 TOTAL SCORE: 3208 Bonus ------- Aligned with FarCom 300 Cogmind --------- Core Integrity 333/550 Matter 226/300 Energy 70/100 System Corruption 0% Temperature Cool (11) Movement Hovering (56) Location -8/Storage Parts ------- > --- POWER (1) -------- (None) > --- PROPULSION (4) --- Airjet Airjet > --- UTILITY (4) ------ (None) > --- WEAPON (2) ------- (None) > --- INVENTORY (5) ---- Improved Signal Interpreter Transmission Jammer Shield Generator Skeleton Box Powered Hammer Peak State ------------ > --- POWER ------------ Light Ion Engine > --- PROPULSION ------- Flight Unit Flight Unit Flight Unit VTOL Module > --- UTILITY ---------- Transmission Jammer ECM Suite Skeleton Box > --- WEAPON ----------- Powered Hammer > --- INVENTORY -------- Shield Generator Rocket Launcher [Rating: 21] Favorites ----------- Power Light Ion Engine Engine Light Ion Engine Propulsion Flight Unit Wheel Compact Wheel Hover Unit Airjet Flight Unit Flight Unit Utility ECM Suite Device ECM Suite Storage Medium Storage Unit Weapon Medium Laser Energy Gun Medium Laser Ballistic Gun Makeshift Shrapnel Gun Launcher Rocket Launcher Impact Weapon Powered Hammer Slashing Weapon Mining Claw Build | -11 -10 -10 -10 -9 -8 -8 ------- Run | Yrd Mat Min Exi Min Mat Sto Slots Evolved 4 | . . . . . 4 . Power . | . . . . . . . Propulsion 2 | . . . . . 2 . Utility 2 | . . . . . 2 . Weapon . | . . . . . . . Parts Attached 24 | 7 4 4 1 3 3 2 Power 2 | 1 . 1 . . . . Engine 2 | 1 . 1 . . . . Core . | . . . . . . . Reactor . | . . . . . . . Propulsion 9 | 2 . 2 . 1 2 2 Treads . | . . . . . . . Leg . | . . . . . . . Wheel 2 | 2 . . . . . . Hover 2 | . . . . . . 2 Flight 5 | . . 2 . 1 2 . Utility 6 | 1 3 . 1 . 1 . Device 4 | . 2 . 1 . 1 . Storage 2 | 1 1 . . . . . Processor . | . . . . . . . Hackware . | . . . . . . . Protection . | . . . . . . . Artifact . | . . . . . . . Weapon 7 | 3 1 1 . 2 . . Energy Gun 1 | 1 . . . . . . Energy Cannon . | . . . . . . . Ballistic Gun 3 | 2 . 1 . . . . Ballistic Cannon . | . . . . . . . Launcher 1 | . . . . 1 . . Special Weapon . | . . . . . . . Impact Weapon 1 | . . . . 1 . . Slashing Weapon 1 | . 1 . . . . . Piercing Weapon . | . . . . . . . Special Melee Weapon . | . . . . . . . Unidentified Prototypes . | . . . . . . . Parts Lost 9 | . . 1 . . 1 7 Power 1 | . . . . . . 1 Propulsion 6 | . . 1 . . 1 4 Utility 1 | . . . . . . 1 Weapon 1 | . . . . . . 1 Highest Loss Streak 5 | . . 1 . . 1 5 To Critical Strikes . | . . . . . . . Average Backups 3 | . 1 4 5 5 2 3 Power . | . . . . . . . Propulsion . | . . . 1 1 . . Utility 1 | . . 1 1 . . 2 Weapon 1 | . 1 1 2 2 1 1 Tool/Special . | . . . . . . . Unused Backups 3 | . . . . 1 . 2 Power . | . . . . . . . Propulsion . | . . . . . . . Utility 2 | . . . . . . 2 Weapon . | . . . . . . . Tool/Special 1 | . . . . 1 . . Average Slot Usage (%) 73 | . 90 82 77 72 69 37 Engine 11 | . 14 14 14 14 9 1 Wheel 7 | . 28 11 . . . . Flight 15 | . . 8 28 28 30 7 Device 17 | . 5 14 20 28 24 19 Storage 4 | . 14 9 . . . . Energy Gun 4 | . 14 9 . . . . Ballistic Gun 8 | . 9 12 14 . . . Impact Weapon 1 | . . . . . 6 8 Slashing Weapon 1 | . 4 1 . . . . Peak Build Rating 21 | 6 7 10 14 14 21 21 Average Rating 9 | 5 6 6 10 10 18 13 On Entrance 9 | . 6 7 8 14 11 21 Avg Prop Armor Cover (%) 5 | . . . . . 5 . Naked Turns 4 | . . . . . . 4 Heaviest Build 24 | 14 24 21 9 9 11 11 Greatest Support 26 | 26 26 26 8 8 16 16 Greatest Overweight (x) 3 | 1 . 1 1 1 . 3 Average Overweight (x) . | . . . . . . . Largest Inventory Capacity 10 | 8 10 10 5 5 5 5 Average Capacity 6 | 7 9 8 5 5 5 5 Most Carried 5 | 1 3 5 5 5 4 5 Average Carried 3 | . 1 4 5 4 1 3 Final Capacity 10 | 8 10 5 5 5 5 5 Final Carried 5 | 1 3 5 5 5 2 5 Class Distribution -------------------- 93% | Mutant 3% | Infiltrator-Mutant Dominant Class ---------------- Mutant | -10/Materials Mutant | -10/Mines Mutant | -10/Exiles Mutant | -9/Mines Infiltrator-Mutant | -8/Materials Mutant | -8/Storage Resources | -11 -10 -10 -10 -9 -8 -8 ----------- Run | Yrd Mat Min Exi Min Mat Sto Matter Collected 475 | 236 32 115 . 45 . 47 Remotely . | . . . . . . . Salvage Created 192 | . 21 67 . 17 . 87 Parts 19 | . 3 6 . 7 . 3 Haulers Intercepted . | . . . . . . . Recyclers Shooed . | . . . . . . . Parts Field Recycled . | . . . . . . . Retrieved Matter . | . . . . . . . Parts Self-Destructed . | . . . . . . . Prevented . | . . . . . . . Parts Restored . | . . . . . . . Kills | -11 -10 -10 -10 -9 -8 -8 ------- Run | Yrd Mat Min Exi Min Mat Sto Combat Hostiles Destroyed 12 | . 2 5 . 4 . 1 Guns 7 | . 2 5 . . . . AOE 4 | . . . . 4 . . Classes Destroyed 3 | . 1 . . . . 2 Mechanic 1 | . . . . . . 1 Swarmer 11 | . 2 5 . 4 . . Grunt 1 | . . . . . . 1 Best Kill Streak 4 | . 2 3 . 4 . 1 Combat Bots Only 4 | . 2 3 . 4 . 1 Max Kills in Single Turn 3 | . 1 2 . 3 . 1 Gunslinging . | . . . . . . . Exploded 3 | . . . . 3 . . Melee . | . . . . . . . Uniques/NPCs Destroyed . | . . . . . . . Combat | -11 -10 -10 -10 -9 -8 -8 -------- Run | Yrd Mat Min Exi Min Mat Sto Hostile Shots Fired 111 | . 20 33 . 2 4 52 Missed 35 | . 6 11 . 1 2 15 Hits 76 | . 14 22 . 1 2 37 Projectile 76 | . 14 22 . 1 2 37 Critical Strikes 3 | . . 1 . . . 2 Damage Taken 940 | . 123 181 . 8 29 599 Core 296 | . 35 44 . . . 217 Absorbed by Shields . | . . . . . . . Core Remaining (%) 84 | 100 . . . 68 . . Volleys Fired 17 | . 4 7 . 2 . 4 Largest 2 | . 2 2 . 1 . 1 Hottest 74 | . 70 74 . 33 . 33 Shots Fired 25 | . 8 11 . 2 . 4 Gun 19 | . 8 11 . . . . Cannon . | . . . . . . . Launcher 6 | . . . . 2 . 4 Special . | . . . . . . . Kinetic 8 | . 4 4 . . . . Thermal 11 | . 4 7 . . . . Explosive 6 | . . . . 2 . 4 Electromagnetic . | . . . . . . . Robot Hit Streak 5 | . 3 5 . . . 5 Robot Miss Streak 3 | . 3 3 . . . 1 Penetration Max . | . . . . . . . Secondary Targets 1 | . . 1 . . . . Max Gunslinging Chain 1 | . . 1 . . . . Shots Hit Robots 20 | . 4 9 . . . 7 Core Hits 17 | . 2 6 . 4 . 5 Critical Kills . | . . . . . . . Critical Parts Destroyed 1 | . . . . . . 1 Critical Strikes 2 | . . 1 . . . 1 Burn 1 | . . 1 . . . . Smash 1 | . . . . . . 1 Melee Attacks 17 | . 3 5 . . 3 6 Impact 9 | . . . . . 3 6 Slashing 8 | . 3 5 . . . . Piercing . | . . . . . . . Sneak Attacks . | . . . . . . . Combat Hostiles . | . . . . . . . Follow-up Attacks . | . . . . . . . Damage Inflicted 883 | . 52 156 . 205 . 470 Guns 160 | . 52 108 . . . . Cannons . | . . . . . . . Explosions 490 | . . . . 205 . 285 Melee 233 | . . 48 . . . 185 Ramming . | . . . . . . . Kinetic 86 | . 39 47 . . . . Thermal 74 | . 13 61 . . . . Explosive 490 | . . . . 205 . 285 Electromagnetic . | . . . . . . . Impact 185 | . . . . . . 185 Slashing 48 | . . 48 . . . . Piercing . | . . . . . . . Highest Corruption . | . . . . . . . Average Corruption . | . . . . . . . Corruption Purged . | . . . . . . . Corruption Blocked . | . . . . . . . Overload Shots . | . . . . . . . Overflow Damage 79 | . . . . . . 79 Projectiles . | . . . . . . . Explosions 8 | . . . . . . 8 Melee 71 | . . . . . . 71 Knockbacks . | . . . . . . . Impact . | . . . . . . . Kinetic . | . . . . . . . Secondary . | . . . . . . . Self-Inflicted Damage 25 | . . . . . . 25 Shots 1 | . . . . . . 1 Rammed . | . . . . . . . Targets Rammed . | . . . . . . . Kicked . | . . . . . . . Crushed . | . . . . . . . Highest Temperature 36 | . 36 24 . . . 5 Average Temperature 13 | . 19 11 . . . 3 Received Heat Transfer 327 | . 30 . . . 9 288 Siege Activations . | . . . . . . . Martial Activations . | . . . . . . . Shielding Activations . | . . . . . . . Robots Disrupted . | . . . . . . . Combat Hostiles . | . . . . . . . Robots Corrupted 1 | . . . . . . 1 Combat Hostiles 1 | . . . . . . 1 Parts Fried 1 | . . . . . . 1 Impact Corruptions 2 | . . . . . . 2 Robots Melted . | . . . . . . . Combat Hostiles . | . . . . . . . Parts Melted 2 | . . 2 . . . . Heat Transferred 296 | . 37 259 . . . . Parts Sabotaged . | . . . . . . . Parts Stolen . | . . . . . . . Parts Stripped . | . . . . . . . Power Chain Reactions . | . . . . . . . Alert | -11 -10 -10 -10 -9 -8 -8 ------- Run | Yrd Mat Min Exi Min Mat Sto Maximum Alert Level . | . . . . . . . Low Security (%) 100 | 100 100 100 . 100 100 100 Level 1 . | . . . . . . . Level 2 . | . . . . . . . Level 3 . | . . . . . . . Level 4 . | . . . . . . . Level 5 . | . . . . . . . High Security . | . . . . . . . Max Security . | . . . . . . . Peak Influence 107 | . 50 70 . 107 26 76 Initial 26 | . . . . . 26 . Average 17 | . 15 16 . 34 13 11 Influence Increases 436 | . 60 120 . 107 3 146 Destroy 0b10 Robot/C 240 | . 40 100 . 80 . 20 Destroy 0b10 Robot/NC 5 | . . . . . . 5 Destroy Leader 50 | . 10 20 . 10 . 10 Successful Hack 8 | . 8 . . . . . Disable Machine 15 | . . . . . . 15 Destroy Structure 58 | . 2 . . 17 3 36 Lose Combat Pursuer 60 | . . . . . . 60 Influence Decreases 360 | . 60 110 10 40 70 70 Entered New Map 51 | . . . 10 . 41 . Time Decay 249 | . 60 100 . 40 19 30 Lost Part 60 | . . 10 . . 10 40 Squads Dispatched 3 | . 1 . . 1 . 1 Investigation 1 | . . . . 1 . . Extermination . | . . . . . . . Reinforcement 2 | . 1 . . . . 1 Assault . | . . . . . . . Garrison . | . . . . . . . Intercept . | . . . . . . . Searches Triggered . | . . . . . . . Construction Impeded . | . . . . . . . Haulers Reinforced . | . . . . . . . Active Scanning Responses . | . . . . . . . Cargo Convoy Interrupts . | . . . . . . . Stealth | -11 -10 -10 -10 -9 -8 -8 --------- Run | Yrd Mat Min Exi Min Mat Sto Distress Signals 2 | . 2 . . . . . Communications Jammed . | . . . . . . . Distress Signals . | . . . . . . . Times Spotted 37 | . 12 9 . 4 4 8 Peak Tracking Total 12 | . 12 3 . 3 4 5 Tactical Retreats 7 | . 1 2 . 1 1 2 ECM-based Alert Blocks 8 | . 1 4 . 1 2 . Traps | -11 -10 -10 -10 -9 -8 -8 ------- Run | Yrd Mat Min Exi Min Mat Sto Traps Triggered . | . . . . . . . Indirectly . | . . . . . . . Trap Hack Attempts . | . . . . . . . Triggered . | . . . . . . . Disarmed . | . . . . . . . Reprogrammed . | . . . . . . . Reused . | . . . . . . . Traps Extracted . | . . . . . . . Installed . | . . . . . . . Triggered . | . . . . . . . Machines | -11 -10 -10 -10 -9 -8 -8 ---------- Run | Yrd Mat Min Exi Min Mat Sto Machines Disabled 1 | . . . . . . 1 Max in Single Turn 1 | . . . . . . 1 Machines Repaired . | . . . . . . . Machines Dismantled . | . . . . . . . Machines Sabotaged . | . . . . . . . Overloaded Fab Kills . | . . . . . . . Hacking | -11 -10 -10 -10 -9 -8 -8 --------- Run | Yrd Mat Min Exi Min Mat Sto Machines Accessed 8 | . 2 . 5 . 1 . Terminals 3 | . 2 . . . 1 . Fabricators . | . . . . . . . Repair Stations . | . . . . . . . Recycling Units . | . . . . . . . Scanalyzers . | . . . . . . . Garrison Access . | . . . . . . . Total Hacks 24 | . 7 . 15 . 2 . Successful 22 | . 5 . 15 . 2 . Failed 2 | . 2 . . . . . Catastrophic . | . . . . . . . Database Lockouts . | . . . . . . . Manual 5 | . 4 . 1 . . . Terminals 9 | . 7 . . . 2 . Fabricators . | . . . . . . . Repair Stations . | . . . . . . . Recycling Units . | . . . . . . . Scanalyzers . | . . . . . . . Garrison Access . | . . . . . . . Terminal Hacks 20 | . 3 . 15 . 2 . Record 14 | . . . 14 . . . Alert Level 2 | . . . . . 2 . Locate Traps 1 | . 1 . . . . . Hauler Manifests 1 | . 1 . . . . . Zone Layout 1 | . 1 . . . . . Proto ID Catalog 1 | . . . 1 . . . Fabricator Hacks . | . . . . . . . Repair Station Hacks . | . . . . . . . Recycling Unit Hacks . | . . . . . . . Scanalyzer . | . . . . . . . Garrison Access Hacks . | . . . . . . . Unauthorized Hacks 2 | . 2 . . . . . Terminals 2 | . 2 . . . . . Botnet 2 | . 2 . . . . . Fabricators . | . . . . . . . Repair Stations . | . . . . . . . Recycling Units . | . . . . . . . Scanalyzers . | . . . . . . . Garrison Access . | . . . . . . . Data Cores Recovered . | . . . . . . . Used . | . . . . . . . Hacking Detections 2 | . 1 . . . 1 . Full Trace Events . | . . . . . . . Feedback Events . | . . . . . . . Feedback Blocked . | . . . . . . . Robot Schematics Acquired . | . . . . . . . Robots Built . | . . . . . . . Authchips . | . . . . . . . Time . | . . . . . . . Total Robot Build Rating . | . . . . . . . Part Schematics Acquired . | . . . . . . . Parts Built . | . . . . . . . Authchips . | . . . . . . . Time . | . . . . . . . Total Part Build Rating . | . . . . . . . Part Studies Acquired . | . . . . . . . Parts Repaired . | . . . . . . . Time . | . . . . . . . Parts Recycled . | . . . . . . . Recycled Matter . | . . . . . . . Retrieved Matter . | . . . . . . . Retrieved Components . | . . . . . . . Parts Scanalyzed . | . . . . . . . Part Schematics Acquired . | . . . . . . . Parts Damaged . | . . . . . . . Bothacking | -11 -10 -10 -10 -9 -8 -8 ------------ Run | Yrd Mat Min Exi Min Mat Sto Used RIF Installer . | . . . . . . . Robots Hacked . | . . . . . . . Non-combat . | . . . . . . . Combat . | . . . . . . . Robot Hacks Applied . | . . . . . . . Relay Couplers Released . | . . . . . . . Fabnet Peak Effective % . | . . . . . . . Robots Rewired . | . . . . . . . Allies Hacked . | . . . . . . . Hacks Repelled . | . . . . . . . Allies | -11 -10 -10 -10 -9 -8 -8 -------- Run | Yrd Mat Min Exi Min Mat Sto Total Allies . | . . . . . . . Largest Group . | . . . . . . . Highest-Rated Group . | . . . . . . . Highest-Rated Ally . | . . . . . . . Total Orders . | . . . . . . . Ally Attacks . | . . . . . . . Total Damage . | . . . . . . . Kills . | . . . . . . . Allies Corrupted . | . . . . . . . Allies Melted . | . . . . . . . Intel | -11 -10 -10 -10 -9 -8 -8 ------- Run | Yrd Mat Min Exi Min Mat Sto Active Infowar (turns) 999 | . 81 356 288 207 34 33 Sensors 4 | . 4 . . . . . Jamming 5 | . . . . . 5 . ECM 995 | . 77 356 288 207 34 33 Robot Analysis Total . | . . . . . . . Derelict Logs Recovered 2 | . . 2 . . . . Drone Launches . | . . . . . . . Drone Recoveries . | . . . . . . . Exploration | -11 -10 -10 -10 -9 -8 -8 ------------- Run | Yrd Mat Min Exi Min Mat Sto Turns Passed 1332 | 65 181 356 288 207 45 190 Spaces Moved 1924 | 57 169 434 522 507 57 178 Core 95 | 3 . . . . . 92 Treads . | . . . . . . . Legs . | . . . . . . . Wheels 400 | 54 169 177 . . . . Hover 2 | . . . . . . 2 Flight 1427 | . . 257 522 507 57 84 Fastest Speed 29 | 50 90 37 37 37 29 29 Average Speed 59 | 88 90 68 55 37 33 87 Slowest Speed 200 | 100 90 115 117 117 34 200 Overloaded Moves . | . . . . . . . Propulsion Burnouts . | . . . . . . . Robots Hopped 6 | . . 1 . 5 . . Potential Cave-ins . | . . . . . . . Cave-ins Triggered . | . . . . . . . Exploration Rate (%) 48 | 3 29 89 92 87 7 35 Regions Visited 6 Branch Regions 4 Pre-discovered Areas . | . . . . . . . Known Exits Taken 1 | . . . . . 1 . Unknown Exits Taken 5 | 1 1 1 1 1 . . Scrap Searched 4 | . . 3 . 1 . . Spaces Dug 5 | . 2 . . . 3 . Terrain Destroyed 62 | . 2 . . 19 3 38 Melee 5 | . 2 . . . 3 . Projectile . | . . . . . . . AOE 57 | . . . . 19 . 38 Terrain Rammed . | . . . . . . . Walls Destroyed . | . . . . . . . Machines Disabled . | . . . . . . . Actions | -11 -10 -10 -10 -9 -8 -8 --------- Run | Yrd Mat Min Exi Min Mat Sto Total 2039 | 67 183 472 522 520 76 199 Wait 31 | 3 . 9 . 6 11 2 Move 1906 | 56 168 431 521 496 56 178 Hop 6 | . . 1 . 5 . . Pick Up 10 | 1 1 5 . 1 1 1 Fast Attach 15 | 6 3 1 1 1 1 2 Attach 8 | . . 1 . 1 4 2 Detach 12 | . 2 3 . 3 . 4 Swap 6 | 1 1 3 . 1 . . Drop 11 | . 1 6 . 4 . . Fire 17 | . 4 7 . 2 . 4 Melee 17 | . 3 5 . . 3 6 Ram . | . . . . . . . Kick . | . . . . . . . Crush . | . . . . . . . Escape Stasis . | . . . . . . . Rewire . | . . . . . . . Trap . | . . . . . . . Miscellaneous . | . . . . . . . Route ------- -11/Scrapyard -10/Materials -10/Mines (discovered 3 exits: [*Mat x2] / *Exi) -10/Exiles (discovered 2 exits: [*Min x2]) -9/Mines -8/Materials (discovered 4 exits: Fac x2 / *Sto x2) -8/Storage History --------- Turn | Location | Event 15 | -11/Scrapyard | Discovered new exit (range 16) 66 | -11/Scrapyard | Entered Materials 237 | -10/Materials | Discovered new exit (range 12) 247 | -10/Materials | Entered Mines 314 | -10/Mines | Build established: Mutant 474 | -10/Mines | A weapon hastily lodged in a ceiling crevice suddenly fell to the ground 481 | -10/Mines | Learned 2 Materials zone layouts 518 | -10/Mines | Discovered new exit (range 4) 542 | -10/Mines | Discovered new exit (range 12) 556 | -10/Mines | Received a Rocket Launcher from a helpful Derelict 563 | -10/Mines | Learned location of 1 exit from Materials 600 | -10/Mines | Deemed a non-threat by the Exiles lab entrance 600 | -10/Mines | Discovered new exit (range 5) 603 | -10/Mines | Entered Exiles 609 | -10/Exiles | Discovered new exit (range 15) 616 | -10/Exiles | Met 8R-AWN 621 | -10/Exiles | Met EX-HEX 640 | -10/Exiles | Met EX-DEC 649 | -10/Exiles | Visited The Gauntlet 710 | -10/Exiles | Met EX-BIN 733 | -10/Exiles | Aligned with FarCom system 733 | -10/Exiles | Given EX-Vault access code 750 | -10/Exiles | Opened EX-Vault 753 | -10/Exiles | Found Skeleton Box 778 | -10/Exiles | Warned to stay clear of 0b10 Research branches 794 | -10/Exiles | Exiles lab attacked by MAIN.C 853 | -10/Exiles | Discovered new exit (range 12) 891 | -10/Exiles | Left Exiles lab with Skeleton Box 891 | -10/Exiles | Entered Mines 1065 | -9/Mines | Remotely autohacked Sealed Doors 1067 | -9/Mines | Met a Derelict shopkeep closing up shop 1093 | -9/Mines | Discovered new exit (range 13) 1098 | -9/Mines | Entered Materials 1098 | -8/Materials | Evolved 4 slots: Propulsion x2, Utility x2 1099 | -8/Materials | Identified exit to Factory 1100 | -8/Materials | Identified exit to Storage 1110 | -8/Materials | Discovered exit to Storage (range 16) 1143 | -8/Materials | Entered Storage 1221 | -8/Storage | Lost 5 parts (1p4n) 1333 | -8/Storage | Self-destructed Last Messages --------------- 01171_ Acquired 47 matter. 01173_ Acquired Imp. Signal Interpreter. 01182_ K-01 Serf collects debris. 01187_ Flight Unit destroyed. 01190_ VTOL Module destroyed. 01206_ K-01 Serf collects debris. 01224_ O-16 Technician: "IFF HANDSHAKE FAILED. SECURING TERMINAL." 01248_ ALERT: Hostiles spotted, dispatching reinforcements to Terminal S011. 01254_ Critical hit (Burn: +37). 01321_ The unstable cave ceiling collapses. 01321_ M-13 Machinist destroyed. 01321_ Rocket Launcher destroyed. 01321_ Destroyed Rocket Launcher. 01321_ ECM Suite destroyed. 01322_ Compression Vault explodes. 01327_ Critical hit (Burn: +37). 01329_ The unstable cave ceiling collapses. 01329_ Acquired Airjet. Map ----- +----------------------------------------------------+ | #??????????????????????????? | | #######+##/###### #####??????????????????????????? | | ?????? ????# #??????????????????????????????? | | ?????? """"????# #??????????????????????????????? | | ????? """"#???# #??????????????????????????????? | | ????? """"#???# #??????????????????????????????? | | ???? """"#???# #??????????????????????????????? | | ???? #???# #??????????????????????????????? | | ???# ???????# #??????????????????????????????? | | ???# ???????# #??????????????????????????????? | | ???# ???????# #??????????????????????????????? | | ???## ###???????# #??????????????????????????????? | | ????##??????????#g#??????????????????????????????? | | ????????????????# #??????????????????????????????? | | ???????????###### ############################ # | | ???????????# | | ???????????# Y | | ???????????# Y | | ???????????# ######+############### #######????? | | ???????????#????????????# ! """ #?# #??????????? | | ???????????????Y????????# "R" #?# #??????????? | | ????????????????????????#] " " #?# #??????????? | | ????????????????????????# ### #??????????? | | ????????????????????????# # #??????????? | | ????????????????????????#/ #Y #??????????? | | ????????????????????????#@ # #??????????? | | ????????????????????????# # #??????????? | | ????????????????????" # ##?????????? | | ????????????????????# # #?????????? | | ?????????????????? g #?????????? | | ???????????Y?????? g T #?????????? | | ???????????w????? #?????????? | | ????????????????##+# # # # #?????????? | | ?????????????????? T########?????????? | | ????????????????? """ # #"""##????????????????? | | ????????????????# """ ###?????????????????????? | | ????????????????#???"" ????????????????????????? | | ????????????????????? Y???????????????????????? | | ?????????????????????" ????????????????????????? | | ?????????????????????? ????????????????????????? | | ??????????????????????? ????????????????????????? | | ?????????????????????????????????????????????????? | | ?????????????????????????????????????????????????? | | ?????????????????????????????????????????????????? | | ?????????????????????????????????????????????????? | | ?????????????????????????????????????????????????? | | ?????????????????????????????????????????????????? | | ?????????????????????????????????????????????????? | | ?????????????????????????????????????????????????? | | ?????????????????????????????????????????????????? | +----------------------------------------------------+ Best States ------------- Heat Dissipation 31 Energy Generation 10 Energy Capacity 250 Matter Stores 300 Matter Capacity 300 Sight Range 16 Terrain Scan Density 10 ECM Strength 1 Evasion (%) 64 Item Schematics ----------------- None Robot Schematics ------------------ None Fabricated ------------ Nothing Repaired ---------- Nothing Studied --------- None Alien Tech Used ----------------- None Achievements -------------- Sixth Sense Challenges ------------ None Game ------ Seed SwarmGuidanceRay Manual? 0 Play Time 00:26:38 Cumulative 83.2 hours Start 2025.10.26 @ 11:45:25 End 2025.10.26 @ 12:30:56 Sessions 1 Manual Loads 0 Difficulty Rogue Special Mode None Game No. 127 Rogue 127 Adventurer 0 Explorer 0 Win Type - Total 0 Types 0/0/0/0/0/0/0/0/0/0 Lore% 27 Gallery% 31 Achievement% 23 Wizard Run 0 Options --------- Layout 1 ASCII 0 Keyboard 0 Movement Arrows Keybinds 0 Fullscreen 1 Font 24/Smallcaps Map View 50x35 Zoom Use 0% Tactical HUD 1 Map Filters NONE Filters NONE Steam 1 RUN: 50808e8c-eab7-4cd1-8d9e-2a78cfc430a2